fUSD/lending_fUSD_20240611
["ID","MTS","AMOUNT","RATE_DAILY","PERIOD"]
[329096175,1718103051156,-151.0,0.00024794,7]
[329096177,1718103051166,-473.378943,0.00024794,7]
[329096179,1718103051177,-940.8,0.00024794,2]
[329096181,1718103051187,-500.0,0.00024794,2]
[329096183,1718103051198,-500.0,0.00024794,2]
[329096185,1718103051209,-1420.19,0.00024794,2]
[329096187,1718103051220,-553.15964105,0.00024794,2]
[329096189,1718103051230,-2225.45,0.00024794,2]
[329096191,1718103051240,-500.0,0.00024794,2]
[329096193,1718103051253,-533.4289957,0.00024794,2]
[329096195,1718103051263,-243.796985,0.00024794,7]
[329096197,1718103051273,-243.796985,0.00024794,7]
[329096199,1718103051284,-500.0,0.00024794,2]
[329096201,1718103051294,-500.0,0.00024794,2]
[329096203,1718103051304,-243.796985,0.00024794,7]
[329096205,1718103051314,-243.796985,0.00024794,7]
[329096206,1718103051325,-500.0,0.00024794,2]
[329096209,1718103051335,-2026.42,0.00024794,2]
[329096210,1718103051346,-165.20505,0.00024794,7]
[329096212,1718103051356,-165.20505,0.00024794,7]
[329096214,1718103051367,-500.0,0.00024794,2]
[329096216,1718103051377,-165.20505,0.00024794,7]
[329096218,1718103051388,-2906.52,0.00024794,2]
[329096220,1718103051399,-165.20505,0.00024794,7]
[329096222,1718103051410,-500.0,0.00024794,2]
[329096224,1718103051420,-163.288509,0.00024794,7]
[329096226,1718103051431,-254.2148084,0.00024794,2]
[329096228,1718103051442,-646.123264,0.00024794,7]
[329096230,1718103051452,-646.123264,0.00024794,7]
[329096232,1718103051464,-500.0,0.00024794,2]
[329096234,1718103051474,-646.123264,0.00024794,7]
[329096236,1718103051485,-646.123264,0.00024794,7]
[329096238,1718103051496,-163.288509,0.00024794,7]
[329096240,1718103051509,-816.843791,0.00024794,7]
[329096242,1718103051520,-500.0,0.00024794,2]
[329096244,1718103051530,-500.0,0.00024794,2]
[329096246,1718103051540,-500.0,0.00024794,2]
[329096248,1718103051551,-500.0,0.00024794,14]
[329096250,1718103051561,-500.0,0.00024794,2]
[329096252,1718103051572,-500.0,0.00024794,2]
[329096255,1718103051583,-164.176193,0.00024794,7]
[329096257,1718103051594,-816.843791,0.00024794,7]
[329096258,1718103051604,-500.0,0.00024794,2]
[329096260,1718103051614,-164.176193,0.00024794,7]
[329096263,1718103051625,-151.0,0.00024794,7]
[329096264,1718103051636,-151.0,0.00024794,7]
[329096267,1718103051648,-500.0,0.00024794,2]
[329096269,1718103051658,-500.0,0.00024794,2]
[329096271,1718103051670,-500.0,0.00024794,2]
[329096273,1718103051681,-154.372811,0.00024794,7]
[329096275,1718103051693,-154.372811,0.00024794,7]
[329096277,1718103051704,-500.0,0.00024794,2]
[329096278,1718103051715,-821.93,0.00024794,2]
[329096280,1718103051726,-500.0,0.00024794,2]
[329096282,1718103051736,-276.7010049,0.00024794,2]
[329096284,1718103051747,-154.372811,0.00024794,7]
[329096286,1718103051760,-714.51,0.00024794,2]
[329096288,1718103051771,-154.372811,0.00024794,7]
[329096290,1718103051782,-500.0,0.00024794,2]
[329096292,1718103051793,-500.0,0.00024794,2]
[329096294,1718103051805,-576.65,0.00024794,2]
[329096296,1718103051816,-500.0,0.00024794,2]
[329096298,1718103051827,-500.0,0.00024794,2]
[329096300,1718103051838,-697.03,0.00024794,2]
[329096303,1718103051850,-151.0,0.00024794,7]
[329096304,1718103051861,-151.0,0.00024794,7]
[329096307,1718103051872,-837.720545,0.00024794,7]
[329096308,1718103051883,-500.0,0.00024794,2]
[329096311,1718103051894,-500.0,0.00024794,2]
[329096312,1718103051905,-837.720545,0.00024794,7]
[329096315,1718103051917,-500.0,0.00024794,2]
[329096317,1718103051927,-1049.071361,0.00024794,7]
[329096318,1718103051939,-500.0,0.00024794,2]
[329096321,1718103051950,-520.77,0.00024794,2]
[329096322,1718103051961,-500.0,0.00024794,2]
[329096324,1718103051975,-1049.071361,0.00024794,7]
[329096326,1718103051986,-500.0,0.00024794,2]
[329096329,1718103051997,-837.720545,0.00024794,7]
[329096330,1718103052009,-1080.442381,0.00024794,7]
[329096332,1718103052020,-837.720545,0.00024794,7]
[329096335,1718103052031,-1080.442381,0.00024794,7]
[329096336,1718103052042,-151.0,0.00024794,7]
[329096338,1718103052054,-500.0,0.00024794,2]
[329096341,1718103052065,-500.0,0.00024794,2]
[329096342,1718103052076,-644.63,0.00024794,2]
[329096345,1718103052087,-1080.442381,0.00024794,7]
[329096347,1718103052097,-1080.442381,0.00024794,7]
[329096349,1718103052108,-151.0,0.00024794,7]
[329096350,1718103052118,-288.664985,0.00024794,7]
[329096352,1718103052129,-2402.32,0.00024794,2]
[329096354,1718103052141,-288.664985,0.00024794,7]
[329096356,1718103052157,-500.0,0.00024794,2]
[329096358,1718103052168,-500.0,0.00024794,2]
[329096360,1718103052179,-500.0,0.00024794,2]
[329096362,1718103052189,-288.664985,0.00024794,7]
[329096364,1718103052200,-288.664985,0.00024794,7]
[329096366,1718103052211,-500.0,0.00024794,2]
[329096368,1718103052222,-151.0,0.00024794,7]
[329096370,1718103052233,-634.05443846,0.00024794,2]
[329096373,1718103052245,-500.0,0.00024794,2]
[329096375,1718103052257,-1518.18,0.00024794,2]
[329096377,1718103052268,-500.0,0.00024794,2]
[329096379,1718103052279,-6631.54,0.00024794,2]
[329096381,1718103052289,-500.0,0.00024794,2]
[329096383,1718103052301,-500.0,0.00024794,2]
[329096385,1718103052312,-500.0,0.00024794,2]
[329096387,1718103052322,-3646.17,0.00024794,2]
[329096389,1718103052333,-500.0,0.00024794,2]
[329096397,1718103052408,-595.03,0.00024794,2]
[329096399,1718103052419,-1046.79,0.00024794,2]
[329096401,1718103052430,-678.28,0.00024794,2]
[329096403,1718103052441,-564.36822836,0.00024794,2]
[329096405,1718103052452,-541.48661213,0.00024794,2]
[329096407,1718103052463,-500.0,0.00024794,2]
[329096409,1718103052473,-500.0,0.00024794,2]
[329096411,1718103052484,-456.15351683,0.00024794,2]
[329096413,1718103052494,-500.0,0.00024794,2]
[329096415,1718103052507,-500.0,0.00024794,2]
[329096417,1718103052517,-3246.46,0.00024794,2]
[329096419,1718103052527,-1782.21,0.00024794,2]
[329096421,1718103052538,-362.09153126,0.00024794,2]
[329096423,1718103052549,-500.0,0.00024794,2]
[329096425,1718103052559,-500.0,0.00024794,2]
[329096427,1718103052570,-1863.65,0.00024794,2]
[329096429,1718103052580,-228.27067797,0.00024794,2]
[329096431,1718103052591,-986.96,0.00024794,2]
[329096433,1718103052601,-60128.61,0.00024794,2]
[329096435,1718103052612,-521.02439519,0.00024794,2]
[329096437,1718103052622,-500.0,0.00024794,2]
[329096439,1718103052633,-694.504821,0.00024794,7]
[329096441,1718103052644,-590.58,0.00024794,2]
[329096443,1718103052655,-704.25,0.00024794,2]
[329096445,1718103052666,-694.504821,0.00024794,7]
[329096447,1718103052677,-151.0,0.00024794,7]
[329096450,1718103052688,-500.0,0.00024794,2]
[329096452,1718103052700,-151.0,0.00024794,7]
[329096454,1718103052711,-694.504821,0.00024794,7]
[329096456,1718103052722,-694.504821,0.00024794,7]
[329096457,1718103052733,-151.0,0.00024794,7]
[329096460,1718103052744,-151.0,0.00024794,7]
[329096461,1718103052756,-500.0,0.00024794,2]
[329096463,1718103052767,-500.0,0.00024794,2]
[329096466,1718103052779,-3650.9,0.00024794,2]
[329096467,1718103052789,-1160.72,0.00024794,2]
[329096469,1718103052800,-500.0,0.00024794,2]
[329096472,1718103052811,-3600.94,0.00024794,2]
[329096474,1718103052822,-500.0,0.00024794,2]
[329096476,1718103052833,-609.71518758,0.00024794,2]
[329096477,1718103052844,-16093.83,0.00024794,2]
[329096480,1718103052854,-173.64719014,0.00024794,2]
[329096482,1718103052865,-500.0,0.00024794,2]
[329096483,1718103052876,-500.0,0.00024794,2]
[329096485,1718103052886,-719.54,0.00024794,2]
[329096487,1718103052897,-500.0,0.00024794,2]
[329096490,1718103052909,-184.4400754,0.00024794,2]
[329096492,1718103052919,-2155.0,0.00024794,2]
[329096494,1718103052930,-1052.76,0.00024794,2]
[329096495,1718103052941,-515.88602822,0.00024794,2]
[329096496,1718103052952,-6544.77,0.00024794,2]
[329096497,1718103052964,-740.04,0.00024794,2]
[329096498,1718103052979,-742.553418,0.00024794,7]
[329096499,1718103052989,-1888.46,0.00024794,2]
[329096500,1718103052999,-742.553418,0.00024794,7]
[329096501,1718103053014,-531.17946927,0.00024794,2]
[329096503,1718103053026,-500.0,0.00024794,2]
[329096505,1718103053037,-742.553418,0.00024794,7]
[329096507,1718103053052,-742.553418,0.00024794,7]
[329096509,1718103053064,-500.0,0.00024794,2]
[329096511,1718103053075,-2806.67,0.00024794,2]
[329096513,1718103053087,-1554.02,0.00024794,2]
[329096515,1718103053099,-500.0,0.00024794,2]
[329096518,1718103053111,-500.0,0.00024794,2]
[329096520,1718103053123,-500.0,0.00024794,2]
[329096522,1718103053135,-500.0,0.00024794,2]
[329096524,1718103053157,-500.0,0.00024794,2]
[329096526,1718103053167,-1798.56,0.00024794,2]
[329096528,1718103053178,-500.0,0.00024794,2]
[329096530,1718103053189,-5181.24,0.00024794,2]
[329096532,1718103053199,-151.0,0.00024794,7]
[329096534,1718103053210,-151.0,0.00024794,7]
[329096536,1718103053220,-151.0,0.00024794,7]
[329096538,1718103053231,-152.735246,0.00024794,7]
[329096540,1718103053241,-500.0,0.00024794,2]
[329096542,1718103053254,-500.0,0.00024794,2]
[329096544,1718103053264,-648.83,0.00024794,2]
[329096546,1718103053274,-1550.43,0.00024794,2]
[329096548,1718103053285,-5415.76,0.00024794,2]
[329096550,1718103053295,-556.8,0.00024794,2]
[329096552,1718103053304,-2910.91,0.00024794,2]
[329096554,1718103053315,-2813.33,0.00024794,2]
[329096556,1718103053324,-5210.45,0.00024794,2]
[329096557,1718103053334,-500.0,0.00024794,2]
[329096559,1718103053344,-780.220663,0.00024794,7]
[329096561,1718103053355,-2614.87,0.00024794,2]
[329096563,1718103053365,-780.220663,0.00024794,7]
[329096565,1718103053375,-500.0,0.00024794,2]
[329096567,1718103053385,-2508.57,0.00024794,2]
[329096569,1718103053395,-524.87,0.00024794,2]
[329096572,1718103053406,-780.220663,0.00024794,7]
[329096573,1718103053416,-780.220663,0.00024794,7]
[329096575,1718103053426,-500.0,0.00024794,2]
[329096577,1718103053437,-1490.4,0.00024794,2]
[329096579,1718103053447,-4575.68,0.00024794,2]
[329096581,1718103053457,-500.0,0.00024794,2]
[329096583,1718103053469,-500.0,0.00024794,2]
[329096585,1718103053479,-1385.62,0.00024794,2]
[329096587,1718103053490,-23273.76,0.00024794,2]
[329096589,1718103053500,-2161.49,0.00024794,2]
[329096591,1718103053512,-3397.46,0.00024794,2]
[329096593,1718103053522,-151.0,0.00024794,7]
[329096595,1718103053532,-500.0,0.00024794,2]
[329096597,1718103053543,-151.0,0.00024794,7]
[329096599,1718103053554,-151.0,0.00024794,7]
[329096601,1718103053565,-507.79597234,0.00024794,2]
[329096603,1718103053576,-500.0,0.00024794,2]
[329096605,1718103053586,-500.0,0.00024794,2]
[329096607,1718103053596,-500.0,0.00024794,2]
[329096609,1718103053607,-836.93,0.00024794,2]
[329096611,1718103053617,-542.85435797,0.00024794,2]
[329096613,1718103053628,-580.81729323,0.00024794,2]
[329096615,1718103053638,-500.0,0.00024794,2]
[329096617,1718103053650,-809.74,0.00024794,2]
[329096619,1718103053661,-4475.39,0.00024794,2]
[329096621,1718103053671,-500.0,0.00024794,2]
[329096623,1718103053682,-1793.26,0.00024794,2]
[329096625,1718103053693,-500.0,0.00024794,2]
[329096627,1718103053704,-1991.54,0.00024794,2]
[329096629,1718103053716,-2264.18,0.00024794,2]
[329096631,1718103053726,-592.66467926,0.00024794,2]
[329096633,1718103053737,-500.0,0.00024794,2]
[329096635,1718103053754,-500.0,0.00024794,2]
[329096637,1718103053765,-1014.4,0.00024794,2]
[329096639,1718103053776,-592.32,0.00024794,2]
[329096641,1718103053788,-516.68,0.00024794,2]
[329096643,1718103053800,-881.73,0.00024794,2]
[329096646,1718103053811,-500.0,0.00024794,2]
[329096648,1718103053823,-2542.46,0.00024794,2]
[329096650,1718103053835,-6118.86,0.00024794,2]
[329096652,1718103053846,-500.0,0.00024794,2]
[329096654,1718103053857,-1797.291357,0.00024794,7]
[329096656,1718103053869,-1797.291357,0.00024794,7]
[329096657,1718103053880,-1797.291357,0.00024794,7]
[329096659,1718103053890,-4350.15,0.00024794,2]
[329096661,1718103053900,-500.0,0.00024794,2]
[329096663,1718103053911,-500.48,0.00024794,2]
[329096665,1718103053921,-12384.13,0.00024794,2]
[329096667,1718103053931,-1805.227908,0.00024794,7]
[329096669,1718103053941,-1797.291357,0.00024794,7]
[329096671,1718103053952,-1805.227908,0.00024794,7]
[329096673,1718103053965,-1797.291357,0.00024794,7]
[329096675,1718103053978,-500.0,0.00024794,2]
[329096678,1718103053989,-1805.227908,0.00024794,7]
[329096680,1718103053999,-1797.291357,0.00024794,7]
[329096682,1718103054011,-526.80831885,0.00024794,2]
[329096684,1718103054020,-1210.98,0.00024794,2]
[329096686,1718103054031,-625.27,0.00024794,2]
[329096688,1718103054041,-661.12,0.00024794,2]
[329096689,1718103054056,-526.91632483,0.00024794,2]
[329096691,1718103054066,-500.0,0.00024794,2]
[329096694,1718103054077,-500.0,0.00024794,2]
[329096695,1718103054088,-1805.227908,0.00024794,7]
[329096698,1718103054098,-1805.227908,0.00024794,7]
[329096700,1718103054109,-1805.227908,0.00024794,7]
[329096701,1718103054120,-683.97,0.00024794,2]
[329096704,1718103054131,-531.16152625,0.00024794,2]
[329096706,1718103054141,-5976.04,0.00024794,2]
[329096708,1718103054156,-221.682962,0.00024794,7]
[329096710,1718103054172,-221.682962,0.00024794,7]
[329096712,1718103054184,-221.682962,0.00024794,7]
[329096714,1718103054195,-1301.38,0.00024794,2]
[329096716,1718103054207,-559.79814327,0.00024794,2]
[329096718,1718103054218,-221.682962,0.00024794,7]
[329096720,1718103054229,-533.01842451,0.00024794,2]
[329096722,1718103054241,-518.11,0.00024794,2]
[329096724,1718103054252,-151.0,0.00024794,7]
[329096726,1718103054264,-221.682962,0.00024794,7]
[329096728,1718103054276,-500.0,0.00024794,2]
[329096730,1718103054287,-221.682962,0.00024794,7]
[329096732,1718103054298,-151.0,0.00024794,7]
[329096734,1718103054309,-151.0,0.00024794,7]
[329096736,1718103054320,-1440.79,0.00024794,2]
[329096738,1718103054331,-20715.74,0.00024794,2]
[329096740,1718103054343,-7241.55,0.00024794,2]
[329096742,1718103054353,-4364.25,0.00024794,2]
[329096744,1718103054364,-4364.33,0.00024794,2]
[329096746,1718103054376,-533.08242316,0.00024794,2]
[329096748,1718103054388,-1770.11,0.00024794,2]
[329096750,1718103054399,-8941.42,0.00024794,2]
[329096752,1718103054412,-1826.27,0.00024794,2]
[329096754,1718103054424,-572.84,0.00024794,2]
[329096757,1718103054436,-994.59,0.00024794,2]
[329096759,1718103054448,-500.0,0.00024794,2]
[329096761,1718103054459,-151.0,0.00024794,7]
[329096763,1718103054471,-151.0,0.00024794,7]
[329096765,1718103054483,-542.08,0.00024794,2]
[329096766,1718103054494,-151.0,0.00024794,7]
[329096768,1718103054506,-1968.25,0.00024794,2]
[329096771,1718103054517,-500.0,0.00024794,2]
[329096773,1718103054528,-584.46691843,0.00024794,2]
[329096775,1718103054540,-3352.97,0.00024794,2]
[329096777,1718103054551,-347.53559328,0.00024794,2]
[329096779,1718103054562,-2643.2,0.00024794,2]
[329096781,1718103054573,-8077.47,0.00024794,2]
[329096783,1718103054584,-554.66,0.00024794,2]
[329096785,1718103054595,-500.0,0.00024794,2]
[329096787,1718103054606,-817.34,0.00024794,2]
[329096789,1718103054617,-151.0,0.00024794,7]
[329096791,1718103054627,-151.0,0.00024794,7]
[329096793,1718103054640,-2323.66,0.00024794,2]
[329096795,1718103054651,-500.0,0.00024794,2]
[329096797,1718103054661,-151.0,0.00024794,7]
[329096799,1718103054673,-151.0,0.00024794,7]
[329096801,1718103054684,-500.0,0.00024794,2]
[329096803,1718103054694,-535.62616037,0.00024794,2]
[329096805,1718103054705,-151.0,0.00024794,7]
[329096807,1718103054715,-601.59,0.00024794,2]
[329096809,1718103054726,-500.0,0.00024794,2]
[329096810,1718103054738,-500.0,0.00024794,2]
[329096811,1718103054749,-500.0,0.00024794,2]
[329096812,1718103054761,-500.0,0.00024794,2]
[329096813,1718103054772,-1573.7,0.00024794,2]
[329096814,1718103054783,-8616.33,0.00024794,2]
[329096815,1718103054794,-500.0,0.00024794,2]
[329096817,1718103054805,-500.0,0.00024794,2]
[329096819,1718103054817,-3147.86,0.00024794,2]
[329096821,1718103054828,-4497.21,0.00024794,2]
[329096823,1718103054838,-500.0,0.00024794,2]
[329096825,1718103054849,-2963.67,0.00024794,2]
[329096827,1718103054862,-500.0,0.00024794,2]
[329096829,1718103054874,-698.88,0.00024794,2]
[329096831,1718103054884,-591.74,0.00024794,2]
[329096833,1718103054895,-500.0,0.00024794,2]
[329096835,1718103054906,-784.8,0.00024794,2]
[329096837,1718103054917,-449.998003,0.00024794,3]
[329096839,1718103054927,-4263.91,0.00024794,2]
[329096841,1718103054937,-449.998003,0.00024794,3]
[329096843,1718103054948,-1163.96,0.00024794,2]
[329096845,1718103054959,-682.636821,0.00024794,7]
[329096847,1718103054973,-1298.72,0.00024794,2]
[329096849,1718103054984,-682.636821,0.00024794,7]
[329096851,1718103054994,-2951.75,0.00024794,2]
[329096853,1718103055006,-449.998003,0.00024794,3]
[329096855,1718103055018,-561.12752618,0.00024794,2]
[329096857,1718103055029,-449.998003,0.00024794,3]
[329096859,1718103055040,-2041.21,0.00024794,2]
[329096861,1718103055051,-1048.93,0.00024794,2]
[329096863,1718103055062,-682.636821,0.00024794,7]
[329096865,1718103055072,-682.636821,0.00024794,7]
[329096867,1718103055083,-300.0,0.00024794,2]
[329096868,1718103055094,-1034.57,0.00024794,2]
[329096869,1718103055105,-4183.7,0.00024794,2]
[329096870,1718103055117,-500.0,0.00024794,2]
[329096871,1718103055128,-500.0,0.00024794,2]
[329096872,1718103055138,-742.6,0.00024794,2]
[329096873,1718103055156,-500.0,0.00024794,2]
[329096874,1718103055167,-5992.83,0.00024794,2]
[329096875,1718103055178,-500.0,0.00024794,2]
[329096876,1718103055190,-500.0,0.00024794,2]
[329096877,1718103055201,-513.34254493,0.00024794,2]
[329096878,1718103055212,-3291.99,0.00024794,2]
[329096879,1718103055224,-500.0,0.00024794,2]
[329096880,1718103055236,-1089.97,0.00024794,2]
[329096881,1718103055247,-7933.92,0.00024794,2]
[329096882,1718103055259,-3324.68,0.00024794,2]
[329096883,1718103055271,-500.0,0.00024794,2]
[329096884,1718103055282,-496.84223229,0.00024794,2]
[329096885,1718103055293,-6862.43,0.00024794,2]
[329096886,1718103055305,-500.0,0.00024794,2]
[329096887,1718103055316,-1657.61,0.00024794,2]
[329096888,1718103055327,-500.0,0.00024794,2]
[329096889,1718103055339,-895.86,0.00024794,2]
[329096890,1718103055350,-500.65508258,0.00024794,2]
[329096891,1718103055363,-1072.91,0.00024794,2]
[329096892,1718103055374,-215.346475,0.00024794,7]
[329096893,1718103055386,-215.346475,0.00024794,7]
[329096894,1718103055396,-661.87,0.00024794,2]
[329096895,1718103055408,-215.346475,0.00024794,7]
[329096896,1718103055419,-2637.47,0.00024794,2]
[329096897,1718103055430,-193.14884163,0.00024794,2]
[329096898,1718103055441,-3348.17,0.00024794,2]
[329096899,1718103055453,-4278.21,0.00024794,2]
[329096900,1718103055465,-215.346475,0.00024794,7]
[329096901,1718103055476,-18970.56,0.00024794,2]
[329096902,1718103055488,-215.346475,0.00024794,7]
[329096903,1718103055499,-215.346475,0.00024794,7]
[329096904,1718103055514,-500.0,0.00024794,2]
[329096905,1718103055525,-500.0,0.00024794,2]
[329096906,1718103055537,-882.16,0.00024794,2]
[329096907,1718103055548,-1295.93,0.00024794,2]
[329096908,1718103055560,-7023.77,0.00024794,2]
[329096909,1718103055573,-1205.47,0.00024794,2]
[329096910,1718103055584,-4001.26,0.00024794,2]
[329096911,1718103055596,-2822.61,0.00024794,2]
[329096912,1718103055607,-506.35,0.00024794,2]
[329096913,1718103055619,-4627.88,0.00024794,2]
[329096914,1718103055631,-500.0,0.00024794,2]
[329096915,1718103055642,-500.0,0.00024794,2]
[329096916,1718103055653,-4081.07,0.00024794,2]
[329096917,1718103055665,-500.0,0.00024794,2]
[329096918,1718103055676,-500.0,0.00024794,2]
[329096919,1718103055688,-500.0,0.00024794,2]
[329096920,1718103055699,-5063.42,0.00024794,2]
[329096921,1718103055711,-852.86,0.00024794,2]
[329096922,1718103055723,-3114.11,0.00024794,2]
[329096923,1718103055734,-6951.93,0.00024794,2]
[329096924,1718103055747,-500.0,0.00024794,2]
[329096925,1718103055760,-500.0,0.00024794,2]
[329096926,1718103055773,-4311.49,0.00024794,2]
[329096927,1718103055784,-506.98456065,0.00024794,2]
[329096928,1718103055797,-558.29,0.00024794,2]
[329096929,1718103055809,-566.75,0.00024794,2]
[329096930,1718103055820,-600.59574081,0.00024794,2]
[329096931,1718103055832,-1344.65,0.00024794,2]
[329096932,1718103055855,-3798.71,0.00024794,2]
[329096933,1718103055871,-872.84,0.00024794,2]
[329096934,1718103055883,-151.0,0.00024794,7]
[329096935,1718103055895,-3626.02,0.00024794,2]
[329096936,1718103055908,-151.0,0.00024794,7]
[329096937,1718103055921,-1542.55,0.00024794,2]
[329096938,1718103055933,-744.77,0.00024794,2]
[329096939,1718103055944,-151.0,0.00024794,7]
[329096940,1718103055956,-500.0,0.00024794,2]
[329096941,1718103055970,-500.0,0.00024794,2]
[329096942,1718103055983,-2450.87,0.00024794,2]
[329096943,1718103055994,-6942.7,0.00024794,2]
[329096944,1718103056009,-500.0,0.00024794,2]
[329096945,1718103056021,-1960.82,0.00024794,2]
[329096946,1718103056033,-755.68,0.00024794,2]
[329096947,1718103056046,-2383.54,0.00024794,2]
[329096948,1718103056060,-4453.97,0.00024794,2]
[329096949,1718103056073,-791.5,0.00024794,2]
[329096950,1718103056085,-3124.99,0.00024794,2]
[329096951,1718103056097,-503.99383676,0.00024794,2]
[329096952,1718103056109,-500.0,0.00024794,2]
[329096953,1718103056122,-1191.11,0.00024794,2]
[329096954,1718103056134,-840.19,0.00024794,2]
[329096955,1718103056152,-500.0,0.00024794,2]
[329096956,1718103056164,-5836.12,0.00024794,2]
[329096957,1718103056176,-2312.07,0.00024794,2]
[329096958,1718103056188,-618.93875623,0.00024794,2]
[329096959,1718103056200,-500.0,0.00024794,2]
[329096960,1718103056212,-3576.14,0.00024794,2]
[329096961,1718103056224,-500.0,0.00024794,2]
[329096962,1718103056236,-500.0,0.00024794,2]
[329096963,1718103056247,-500.0,0.00024794,2]
[329096964,1718103056263,-500.0,0.00024794,2]
[329096965,1718103056274,-2101.15,0.00024794,2]
[329096966,1718103056286,-500.0,0.00024794,2]
[329096967,1718103056297,-500.0,0.00024794,2]
[329096968,1718103056309,-832.37,0.00024794,2]
[329096969,1718103056322,-500.0,0.00024794,2]
[329096970,1718103056335,-500.0,0.00024794,2]
[329096971,1718103056347,-566.49349236,0.00024794,2]
[329096972,1718103056359,-1433.52,0.00024794,2]
[329096973,1718103056371,-545.76,0.00024794,2]
[329096974,1718103056385,-500.0,0.00024794,2]
[329096975,1718103056397,-451.41717234,0.00024794,2]
[329096976,1718103056410,-972.32,0.00024794,2]
[329096977,1718103056423,-11542.35,0.00024794,2]
[329096978,1718103056437,-151.0,0.00024794,7]
[329096979,1718103056452,-151.0,0.00024794,7]
[329096980,1718103056464,-1776.98,0.00024794,2]
[329096981,1718103056475,-151.0,0.00024794,7]
[329096982,1718103056488,-1230.55,0.00024794,2]
[329096983,1718103056500,-500.0,0.00024794,2]
[329096984,1718103056512,-537.34842036,0.00024794,2]
[329096985,1718103056524,-151.0,0.00024794,7]
[329096986,1718103056536,-500.0,0.00024794,2]
[329096987,1718103056548,-151.0,0.00024794,7]
[329096988,1718103056560,-500.0,0.00024794,2]
[329096989,1718103056572,-151.0,0.00024794,7]
[329096990,1718103056584,-1676.04,0.00024794,2]
[329096991,1718103056596,-500.0,0.00024794,2]
[329096992,1718103056608,-1682.27,0.00024794,2]
[329096993,1718103056620,-11356.85,0.00024794,2]
[329096994,1718103056632,-500.0,0.00024794,2]
[329096995,1718103056645,-4244.602841,0.00024794,7]
[329096996,1718103056657,-4244.602841,0.00024794,7]
[329096997,1718103056670,-4244.602841,0.00024794,7]
[329096998,1718103056681,-500.0,0.00024794,2]
[329096999,1718103056693,-500.0,0.00024794,2]
[329097000,1718103056705,-2862.17,0.00024794,2]
[329097001,1718103056716,-1477.71945047,0.00024798,2]
[329097002,1718103056728,-1477.71945041,0.00024798,2]
[329097003,1718103056740,-1477.71945041,0.00024798,2]
[329097004,1718103056752,-1477.71945041,0.00024798,2]
[329097005,1718103056765,-1477.71945041,0.00024798,2]
[329097006,1718103056776,-1477.71945041,0.00024798,2]
[329097007,1718103056788,-1477.71945041,0.00024798,2]
[329097008,1718103056799,-1477.71945041,0.00024798,2]
[329097009,1718103056812,-151.21703733,0.00024799,2]
[329097010,1718103056823,-151.21703733,0.00024799,2]
[329097011,1718103056834,-151.21703733,0.00024799,2]
[329097012,1718103056847,-8488.15909421,0.00024859,2]
[329097013,1718103056860,-1000.0,0.00024886,2]
[329097014,1718103056872,-800.0,0.000249,9]
[329097015,1718103056884,-1125.5,0.00024931,2]
[329097016,1718103056895,-698.65,0.00024931,2]
[329097017,1718103056906,-829.38,0.00024931,2]
[329097018,1718103056918,-151.0,0.00024931,7]